bitfinex/quotes_SOLUSD_20260108
["timestamp","ask_amount","ask_price","bid_price","bid_amount"]
[1767909960749,13.06,139.82,139.8,9.81215103]
[1767909960949,35.45755151,139.97,139.8,9.81215103]
[1767909960950,7.81623437,139.88,139.82,0.69457947]
[1767909961151,0.65809756,139.84,139.79,9.11757156]
[1767909961572,0.65809756,139.84,139.79,9.81215103]
[1767909961757,0.65809756,139.84,139.8,9.11757156]
[1767909961959,0.65809756,139.84,139.79,9.81215103]
[1767909962174,0.32288356,139.84,139.79,9.81215103]
[1767909962375,0.32288356,139.84,139.79,0.69457947]
[1767909962553,0.32288356,139.84,139.78,9.11757156]
[1767909962755,9.11757156,139.84,139.78,9.11757156]
[1767909963047,7.15154115,139.83,139.78,9.7791433]
[1767909963250,16.26911271,139.83,139.78,0.66157174]
[1767909964080,7.15154115,139.83,139.78,9.7791433]
[1767909964254,7.15111369,139.84,139.81,9.7791433]
[1767909964453,13.06,139.84,139.81,9.7791433]
[1767909964966,18.09195962,139.88,139.82,9.7791433]
[1767909965271,0.21903231,139.87,139.83,9.7791433]
[1767909965472,13.27903231,139.87,139.83,9.7791433]
[1767909965974,20.42852827,139.87,139.83,9.7791433]
[1767909966176,7.36852827,139.87,139.83,9.7791433]
[1767909966480,13.06,139.86,139.83,0.66157174]
[1767909967079,13.06,139.86,139.83,9.11757156]
[1767909967466,0.21903231,139.87,139.83,9.11757156]
[1767909967654,13.06,139.86,139.83,9.11757156]
[1767909967857,12.72495959,139.86,139.83,9.11757156]
[1767909968756,0.21903231,139.87,139.83,9.11757156]
[1767909968963,13.06,139.86,139.83,9.11757156]
[1767909969560,13.06,139.86,139.82,9.81684434]
[1767909970058,20.21007627,139.86,139.82,9.81684434]
[1767909970674,20.21007627,139.86,139.82,0.69927278]
[1767909970883,20.21007627,139.86,139.83,9.11757156]
[1767909971280,7.15007627,139.86,139.83,9.11757156]
[1767909971502,20.21007627,139.86,139.83,9.11757156]
[1767909971981,22.39660387,139.87,139.83,9.11757156]
[1767909972361,13.27903231,139.87,139.83,9.11757156]
[1767909972686,18.89430712,139.87,139.82,6.31454759]
[1767909972891,0.21903231,139.84,139.8,6.31454759]
[1767909973778,2.81894346,139.85,139.8,6.31454759]
[1767909974485,5.61527481,139.85,139.8,5.61527481]
[1767909974867,5.61527481,139.83,139.78,5.61527481]
[1767909975067,5.61527481,139.82,139.77,0.69927278]
[1767909975263,5.61527481,139.82,139.78,5.61527481]
[1767909975484,5.61527481,139.82,139.77,6.31454759]
[1767909975687,5.61527481,139.82,139.78,5.61527481]
[1767909976072,5.61527481,139.82,139.78,6.31454759]
[1767909976477,13.06,139.84,139.78,6.31454759]
[1767909976478,30.64566885,139.83,139.78,6.31454759]
[1767909977879,30.64566885,139.83,139.78,5.61527481]
[1767909978090,5.61527481,139.82,139.77,5.61527481]
[1767909978287,5.61527481,139.82,139.77,6.31454759]
[1767909979288,164.3,139.92,139.82,0.69927278]
[1767909979472,1e-08,139.96,139.94,6.6801107]
[1767909979789,0.80921568,139.98,139.92,0.28432314]
[1767909979790,0.1,139.98,139.95,5.61527481]
[1767909979989,0.1,139.99,139.96,7.14489854]
[1767909980192,1.02,140.0,139.96,5.61527481]
[1767909980378,1.72921568,140.0,139.96,5.61527481]
[1767909980572,0.70921568,139.99,139.92,3.72681216]
[1767909980772,0.70921568,139.94,139.92,3.72681216]
[1767909980977,13.06,139.99,139.92,2.17350898]
[1767909980978,5.61527481,139.95,139.92,2.17350898]
[1767909981179,5.61527481,139.96,139.92,2.17350898]
[1767909981488,5.61527481,139.95,139.92,2.17350898]
[1767909981882,1.12,140.0,139.94,6.31454759]
[1767909982090,6.73527481,140.0,139.95,5.61527481]
[1767909982268,8.26298874,140.0,139.94,7.84519245]
[1767909982474,1.12,140.0,139.98,5.61527481]
[1767909982698,1.12,140.0,139.99,5.61527481]
[1767909983078,1.12,140.0,139.98,5.61527481]
[1767909984180,5.75743638,140.04,139.98,5.61527481]
[1767909984387,18.16592257,140.03,139.98,5.61527481]
[1767909984790,18.16592257,140.03,139.99,5.61527481]
[1767909985290,5.61527481,140.01,139.96,7.14453464]
[1767909985683,5.61527481,140.01,139.97,7.14409635]
[1767909986181,5.61527481,140.01,139.96,7.14489854]
[1767909986382,18.65527481,140.01,139.96,7.14489854]
[1767909986576,5.61527481,140.01,139.96,7.14489854]
[1767909986789,18.65527481,140.01,139.95,7.1452787]
[1767909986990,18.65527481,140.01,139.93,0.69927278]
[1767909986991,5.61527481,139.98,139.93,6.31454759]
[1767909987198,5.61527481,139.98,139.94,7.14575128]
[1767909987499,5.61527481,139.98,139.95,7.14534412]
[1767909988101,5.61527481,139.98,139.94,7.14575002]
[1767909988704,5.61527481,139.98,139.94,7.14591967]
[1767909989284,5.61527481,139.98,139.93,7.84560846]
[1767909989481,100.0,140.01,139.93,7.84560846]
[1767909989686,5.61527481,139.99,139.94,5.61527481]
[1767909990503,5.61527481,139.98,139.93,25.71168435]
[1767909990892,20.18303514,140.0,139.93,31.32695916]
[1767909991104,5.61527481,139.98,139.93,31.32695916]
[1767909991494,13.04,139.98,139.94,5.61527481]
[1767909991907,13.04,139.98,139.94,12.76094089]
[1767909992302,13.04,139.98,139.94,7.14566608]
[1767909992488,18.65527481,139.98,139.93,7.84554542]
[1767909993813,25.79929153,139.98,139.93,7.84554542]
[1767909993991,5.61527481,139.97,139.93,7.84554542]
[1767909994388,5.61527481,139.96,139.9,5.61527481]
[1767909994589,5.61527481,139.95,139.9,7.81809538]
[1767909994811,13.04,139.94,139.9,7.81809538]
[1767909994994,18.65527481,139.94,139.9,7.81809538]
[1767909995897,5.61527481,139.91,139.86,5.61527481]
[1767909996093,13.04,139.9,139.83,0.67043571]
[1767909996298,13.04,139.9,139.86,5.61527481]
[1767909996493,7.14662219,139.93,139.88,5.61527481]
[1767909996701,12.761897,139.93,139.88,5.61527481]
[1767909996894,13.04,139.92,139.88,5.61527481]
[1767909997611,18.65527481,139.92,139.87,5.61527481]
[1767909997813,18.65527481,139.92,139.87,12.76437359]
[1767909998412,18.65527481,139.92,139.87,13.4348093]
[1767909999514,18.65527481,139.92,139.87,7.81953449]
[1767909999814,18.65527481,139.92,139.87,13.4348093]
[1767910000114,25.80228652,139.92,139.87,13.4348093]
[1767910000614,25.90128652,139.92,139.87,13.4348093]
[1767910000807,25.90128652,139.92,139.87,12.76437359]
[1767910001522,12.86128652,139.92,139.87,13.4348093]
[1767910002007,13.04,139.91,139.87,13.4348093]
[1767910002195,13.04,139.9,139.87,13.4348093]
[1767910002592,13.04,139.9,139.87,7.14909878]
[1767910002799,18.75960578,139.9,139.85,6.28571052]
[1767910002994,5.61527481,139.89,139.85,7.82063219]
[1767910003197,13.04,139.88,139.85,7.82063219]
[1767910003910,13.04,139.88,139.84,5.61527481]
[1767910003911,13.04,139.88,139.84,12.76616922]
[1767910004099,18.76483066,139.88,139.83,6.28571052]
[1767910004300,5.61527481,139.87,139.83,0.67043571]
[1767910004910,5.61527481,139.87,139.83,7.82187716]
[1767910006121,25.91411294,139.88,139.83,13.43715197]
[1767910006695,25.91411294,139.88,139.83,7.82187716]
[1767910006696,5.61527481,139.87,139.83,7.82187716]
[1767910009797,5.61527481,139.86,139.83,7.82187716]
[1767910010112,13.04,139.85,139.81,0.67043571]
[1767910010306,13.00999998,139.85,139.81,7.82276807]
[1767910010611,18.62527479,139.85,139.81,7.82276807]
[1767910010927,18.62527479,139.85,139.77,0.67043571]
[1767910010928,5.61527481,139.82,139.77,0.67043571]
[1767910011220,13.04,139.81,139.77,7.82497834]
[1767910011418,18.65527481,139.81,139.77,0.67043571]
[1767910011817,25.80805295,139.81,139.77,0.67043571]
[1767910012131,13.04,139.81,139.78,6.28571052]
[1767910012435,0.10433097,139.8,139.78,5.61527481]
[1767910012610,0.10433097,139.8,139.77,7.15450825]
[1767910012807,0.10433097,139.8,139.78,5.61527481]
[1767910014008,13.06,139.79,139.78,7.15403535]
[1767910014216,13.06,139.79,139.77,5.61527481]
[1767910014638,0.10433097,139.8,139.77,5.61527481]
[1767910014933,0.10433097,139.8,139.76,7.15462487]
[1767910014934,13.06,139.78,139.76,7.15462487]
[1767910015102,13.06,139.78,139.74,5.61527481]
[1767910015501,13.06,139.78,139.74,12.77126607]
[1767910015827,13.06,139.78,139.75,7.1555236]
[1767910016035,5.61527481,139.77,139.74,0.67043571]
[1767910016198,25.82961967,139.78,139.74,0.67043571]
[1767910018710,5.61527481,139.77,139.74,0.67043571]
[1767910019414,20.21434486,139.78,139.73,0.2]
[1767910019415,5.61527481,139.76,139.73,0.2]
[1767910019615,18.67527481,139.75,139.73,0.2]
[1767910020117,13.06,139.75,139.73,0.2]
[1767910021518,13.06,139.75,139.71,0.1]
[1767910021519,5.61527481,139.74,139.71,0.1]
[1767910021845,20.21574309,139.75,139.71,0.77043571]
[1767910021846,13.06,139.73,139.71,0.77043571]
[1767910022635,13.06,139.72,139.71,0.77043571]
[1767910025929,13.06,139.72,139.71,7.92811948]
[1767910026136,5.61527481,139.77,139.72,0.72058099]
[1767910026350,13.06,139.76,139.73,0.72058099]
[1767910026645,13.06,139.76,139.74,0.72058099]
[1767910029051,20.21519788,139.76,139.74,0.72058099]
[1767910029758,13.06,139.76,139.74,0.72058099]
[1767910030054,0.11632266,139.75,139.73,5.61527481]
[1767910030232,0.11632266,139.75,139.73,12.77190446]
[1767910030950,0.11632266,139.75,139.73,5.61527481]
[1767910031149,0.11632266,139.75,139.74,5.61527481]
[1767910031352,13.06,139.76,139.74,5.61527481]
[1767910031648,13.06,139.76,139.75,4.89027481]
[1767910032550,13.06,139.76,139.75,3.27920801]
[1767910032928,13.06,139.76,139.74,3.999789]
[1767910033335,13.06,139.76,139.75,3.27920801]
[1767910036438,13.06,139.76,139.71,0.1]
[1767910036439,3.27920801,139.74,139.71,0.1]
[1767910036639,13.06,139.73,139.71,0.1]
[1767910036858,13.03000001,139.73,139.71,0.1]
[1767910039250,20.18694847,139.73,139.71,0.1]
[1767910039741,20.18694847,139.73,139.71,1e-08]
[1767910040135,0.72410873,139.96,139.75,0.28432314]
[1767910040335,0.72410873,139.96,139.87,6.6801107]
[1767910040537,0.72410873,139.95,139.91,3.27920801]
[1767910040753,0.72410873,139.95,139.93,3.27920801]
[1767910040953,0.72410873,139.97,139.93,3.27920801]
[1767910041165,0.72410873,139.93,139.88,3.27920801]
[1767910041337,4.00331674,139.93,139.88,3.27920801]
[1767910041540,4.00331674,139.93,139.85,6.6801107]
[1767910041541,4.00331674,139.9,139.85,3.27920801]
[1767910042240,4.00331674,139.9,139.85,10.42968101]
[1767910042446,0.72410873,139.9,139.85,3.27920801]
[1767910042648,0.72410873,139.9,139.85,9.12013894]
[1767910042850,0.72410873,139.87,139.77,13.06]
[1767910043164,0.72410873,139.86,139.82,9.12013894]
[1767910043355,9.84424767,139.86,139.81,7.15246666]
[1767910048557,13.06,139.85,139.81,7.15246666]
[1767910050461,13.06,139.85,139.81,9.12013894]
[1767910050659,13.06,139.87,139.83,9.12013894]
[1767910051969,13.78410873,139.87,139.83,9.12013894]
[1767910053964,13.78410873,139.87,139.83,16.27163833]
[1767910055068,22.90424767,139.87,139.82,9.12013894]
[1767910056964,9.84424767,139.87,139.82,16.2718091]
[1767910057165,0.70521064,139.86,139.82,16.2718091]
[1767910057367,0.70521064,139.86,139.81,7.15221229]
[1767910057567,0.70521064,139.86,139.82,9.12013894]
[1767910058962,0.70521064,139.86,139.82,16.27216132]
[1767910061062,0.70521064,139.86,139.82,78.37216132]
[1767910062764,0.70521064,139.86,139.82,69.25202238]
[1767910064573,0.70521064,139.86,139.82,72.52755105]
[1767910064880,0.70521064,139.86,139.83,3.27552867]
[1767910066274,0.70521064,139.86,139.82,72.52755105]
[1767910067277,0.70521064,139.85,139.8,7.15277352]
[1767910067576,0.70521064,139.87,139.84,3.27552867]
[1767910067871,13.06,139.86,139.84,3.27552867]
[1767910069559,13.76521064,139.86,139.84,3.27552867]
[1767910070785,20.91528837,139.86,139.82,3.27552867]
[1767910071680,20.91528837,139.86,139.83,3.27552867]
[1767910072570,13.76521064,139.86,139.83,3.27552867]
[1767910073783,20.91522637,139.86,139.83,3.27552867]
[1767910074984,20.91522637,139.86,139.81,7.15216167]
[1767910075286,20.91522637,139.86,139.83,3.27552867]
[1767910076789,0.70521064,139.92,139.85,3.27552867]
[1767910077086,0.70521064,139.92,139.89,3.27552867]
[1767910077773,7.85266257,139.91,139.89,3.27552867]
[1767910079289,7.85266257,139.91,139.88,3.27552867]
[1767910079971,13.06,139.9,139.88,3.27552867]
[1767910080689,7.85266257,139.91,139.88,3.27552867]
[1767910080890,13.06,139.9,139.88,3.27552867]
[1767910081373,13.76521064,139.9,139.88,3.27552867]
[1767910083491,13.06,139.9,139.88,3.27552867]
[1767910084689,13.76040817,139.9,139.88,3.27552867]
[1767910085085,13.76040817,139.9,139.87,10.42493392]
[1767910085284,13.76040817,139.9,139.87,7.14940525]
[1767910085474,13.76040817,139.9,139.87,10.42493392]
[1767910085673,0.70040817,139.89,139.87,10.42493392]
[1767910086392,13.06,139.9,139.87,10.42493392]
[1767910086393,13.73790968,139.9,139.87,10.42493392]
[1767910086772,13.71790968,139.9,139.87,10.42493392]
[1767910087574,0.67790968,139.92,139.88,3.27552867]
[1767910087782,13.04,139.9,139.88,3.27552867]
[1767910087990,13.71790968,139.9,139.87,72.52493392]
[1767910088791,13.71790968,139.9,139.88,3.27552867]
[1767910089376,13.71790968,139.9,139.87,72.52493392]
[1767910090277,13.71790968,139.9,139.87,65.37552867]
[1767910092611,13.71790968,139.9,139.88,2.09473071]
[1767910093399,13.71790968,139.9,139.88,64.19473071]
[1767910093793,0.67790968,139.9,139.88,62.1]
[1767910094111,20.86594376,139.9,139.88,62.1]
[1767910094298,13.71790968,139.9,139.88,62.1]
[1767910102004,20.86595219,139.9,139.86,62.1]
[1767910102301,0.67790968,139.89,139.86,62.1]
[1767910102497,0.67790968,139.89,139.85,64.19473071]
[1767910102700,0.67790968,139.89,139.85,62.1]
[1767910102906,0.67790968,139.89,139.85,64.19473071]
[1767910103308,0.67790968,139.89,139.85,62.1]
[1767910103811,0.67790968,139.89,139.85,64.19473071]
[1767910104312,7.82666801,139.89,139.85,2.09473071]
[1767910104616,7.82666801,139.89,139.84,71.34569157]
[1767910105212,7.82666801,139.89,139.85,9.24508984]
[1767910105409,0.67790968,139.91,139.86,2.09473071]
[1767910105612,0.67790968,139.89,139.85,2.09473071]
[1767910105824,0.64790969,139.89,139.85,2.1247307]
[1767910106315,9.24412939,139.88,139.84,62.1]
[1767910106603,15.13473071,139.87,139.84,62.1]
[1767910106798,15.10473072,139.87,139.84,62.1]
[1767910107004,13.01000001,139.87,139.84,62.1]
[1767910107714,20.15954908,139.87,139.84,62.1]
[1767910107889,20.15954908,139.87,139.83,7.18146867]
[1767910108090,20.15954908,139.87,139.83,69.28146867]
[1767910110508,20.15954908,139.87,139.83,71.37619938]
[1767910110711,20.12954909,139.87,139.83,69.28146867]
[1767910110893,20.12954909,139.87,139.83,71.37619938]
[1767910113618,20.84882341,139.87,139.83,71.37619938]
[1767910116010,20.84882341,139.87,139.83,64.2247307]
[1767910116616,20.84882341,139.87,139.83,71.37619208]
[1767910116805,20.84882341,139.87,139.83,69.28146137]
[1767910117414,20.81882342,139.87,139.83,69.28146137]
[1767910120917,20.81882342,139.87,139.83,69.28152196]
[1767910123219,20.81882342,139.87,139.83,62.12999999]
[1767910123416,0.71927432,139.84,139.81,62.1]
[1767910123599,13.72927433,139.84,139.81,62.1]
[1767910123800,15.82400504,139.84,139.81,62.1]
[1767910124220,13.72927433,139.84,139.81,69.25246921]
[1767910124422,13.72927433,139.84,139.81,71.4071999]
[1767910124599,13.69927434,139.84,139.81,71.4071999]
[1767910125295,13.69927434,139.84,139.81,69.31246919]
[1767910125519,13.04,139.84,139.81,69.31246919]
[1767910125815,13.06,139.85,139.81,71.4071999]
[1767910126216,13.06,139.85,139.81,71.40709389]
[1767910126721,13.77927432,139.85,139.81,71.40709389]
[1767910127307,13.77927432,139.85,139.81,69.31236318]
[1767910127519,20.92984293,139.85,139.81,69.31236318]
[1767910128225,0.71927432,139.84,139.81,62.1]
[1767910129406,7.87081547,139.83,139.81,62.1]
[1767910129932,0.71927432,139.83,139.81,62.1]
[1767910131724,20.93055274,139.84,139.81,62.1]
[1767910133624,0.71927432,139.83,139.81,62.1]
[1767910134535,0.71927432,139.83,139.8,0.08999997]
[1767910138534,0.71927432,139.83,139.8,0.08999997]
[1767910140339,0.71927432,139.83,139.8,62.18999997]
[1767910140541,20.21110138,139.84,139.8,62.18999997]
[1767910140749,20.9303757,139.84,139.8,62.18999997]
[1767910141123,20.9303757,139.84,139.8,64.28473068]
[1767910142534,20.9303757,139.84,139.8,62.18999997]
[1767910142535,0.67894011,139.83,139.8,62.18999997]
[1767910143651,0.67894011,139.82,139.8,62.1]
[1767910143823,0.67894011,139.81,139.78,0.08999997]
[1767910144027,0.67894011,139.81,139.78,62.1]
[1767910144251,0.67894011,139.8,139.78,62.1]
[1767910144537,0.67894011,139.8,139.75,0.08999997]
[1767910144749,0.67894011,139.79,139.76,0.70974551]
[1767910144954,7.83263184,139.79,139.75,9.96010201]
[1767910145525,7.83263184,139.79,139.75,2.80447622]
[1767910145942,0.67894011,139.79,139.75,9.9599828]
[1767910146144,13.73894011,139.79,139.75,9.9599828]
[1767910146949,20.8925491,139.79,139.75,2.80447622]
[1767910148050,20.8925491,139.79,139.75,9.96006636]
[1767910148428,20.8925491,139.79,139.75,7.86533565]
[1767910148736,20.8925491,139.79,139.75,2.80447622]
[1767910149360,0.67894011,139.78,139.74,0.70974551]
[1767910149527,0.67894011,139.78,139.75,2.80447622]
[1767910150250,13.73894011,139.79,139.76,0.70974551]
[1767910150624,13.73894011,139.79,139.75,0.70974551]
[1767910150826,0.67894011,139.78,139.74,2.80447622]
[1767910151032,0.67894011,139.78,139.75,61.375]
[1767910152845,0.68365899,139.77,139.75,61.375]
[1767910153041,0.68365899,139.77,139.74,0.70974551]
[1767910153445,0.68365899,139.77,139.73,0.89944368]
[1767910153643,0.68365899,139.76,139.73,0.89944368]
[1767910153839,0.68365899,139.76,139.73,0.2]
[1767910153840,0.68365899,139.75,139.73,0.2]
[1767910154042,7.14796283,139.9,139.75,0.69944368]
[1767910154241,3.27900725,139.84,139.78,3.97845093]
[1767910154448,16.33900725,139.84,139.78,3.97845093]
[1767910155029,7.15154115,139.83,139.78,3.97845093]
[1767910155247,10.4305484,139.83,139.78,3.97845093]
[1767910155637,20.21154115,139.83,139.78,3.97845093]
[1767910156042,0.68365899,139.82,139.78,3.97845093]
[1767910156656,7.83601879,139.82,139.79,3.27900725]
[1767910157058,0.68365899,139.81,139.79,3.27900725]
[1767910157557,0.68365899,139.81,139.78,3.97845093]
[1767910160561,0.68365899,139.81,139.77,62.1]
[1767910160562,0.68365899,139.8,139.77,62.1]
[1767910160866,0.68365899,139.8,139.76,3.27900725]
[1767910161244,0.68365899,139.8,139.75,66.07845093]
[1767910162069,0.68365899,139.79,139.75,66.07845093]
[1767910162268,0.68365899,139.79,139.75,73.23400904]
[1767910162567,0.68365899,139.78,139.75,66.07845093]
[1767910162741,0.68365899,139.78,139.76,3.27900725]
[1767910163246,0.68365899,139.78,139.75,66.07845093]
[1767910163558,0.68365899,139.78,139.75,73.23406716]
[1767910164566,0.68365899,139.77,139.73,0.2]
[1767910164866,0.68365899,139.76,139.73,0.2]
[1767910167151,0.68365899,139.75,139.73,0.2]
[1767910167349,0.68365899,139.75,139.73,62.3]
[1767910169178,0.68365899,139.75,139.73,65.57900725]
[1767910169558,0.68365899,139.76,139.73,65.57900725]
[1767910169888,0.68365899,139.76,139.73,66.27845093]
[1767910170983,7.83895734,139.76,139.73,66.27845093]
[1767910171159,7.83895734,139.76,139.73,65.57900725]
[1767910172980,0.67994263,139.81,139.74,0.72147695]
[1767910173188,0.67994263,139.8,139.77,3.27900725]
[1767910173389,13.73994263,139.8,139.77,3.27900725]
[1767910174061,0.67994263,139.79,139.76,0.72147695]
[1767910174392,0.67994263,139.79,139.77,3.27900725]
[1767910174562,0.67994263,139.79,139.76,4.0004842]
[1767910174969,7.83363823,139.79,139.76,4.0004842]
[1767910177085,7.83363823,139.79,139.75,0.72147695]
[1767910177267,0.67994263,139.78,139.74,4.0004842]
[1767910177602,0.67994263,139.78,139.75,0.72147695]
[1767910178083,0.67994263,139.78,139.75,4.0004842]
[1767910178586,0.67994263,139.78,139.74,3.27900725]
[1767910178780,0.67994263,139.77,139.73,4.2004842]
[1767910178982,0.64994264,139.77,139.73,4.2004842]
[1767910179888,7.77473169,139.77,139.73,4.2004842]
[1767910180468,7.15478904,139.77,139.73,4.2004842]
[1767910180668,41.38032415,139.77,139.73,62.3]
[1767910181186,20.21478904,139.77,139.73,62.3]
[1767910181891,7.15563506,139.75,139.73,62.3]
[1767910182079,7.09563508,139.75,139.73,62.3]
[1767910182391,7.77557771,139.75,139.73,62.3]
[1767910183588,13.06,139.76,139.73,65.57900725]
[1767910183774,20.894772,139.77,139.74,3.27900725]
[1767910184691,0.67994263,139.76,139.73,0.92147695]
[1767910184891,0.67994263,139.76,139.73,4.2004842]
[1767910185074,0.67994263,139.74,139.73,1e-08]
[1767910185274,0.67994263,139.73,139.71,1e-08]
[1767910185468,3.8989499,139.73,139.71,1e-08]
[1767910186187,0.61994265,139.73,139.71,1e-08]
[1767910186571,0.58994266,139.73,139.71,1e-08]
[1767910196079,0.58994266,139.73,139.71,62.10000001]
[1767910197480,20.2163526,139.74,139.71,62.82147696]
[1767910197875,20.89629523,139.74,139.71,62.82147696]
[1767910198898,20.89629523,139.74,139.71,62.10000001]
[1767910200497,0.67994263,139.73,139.69,0.92147695]
[1767910200697,7.83629523,139.74,139.71,0.72147695]
[1767910201699,20.89575488,139.75,139.72,0.72147695]
[1767910201897,13.73994263,139.75,139.72,0.72147695]
[1767910202091,0.67994263,139.73,139.7,0.72147695]
[1767910204506,11.11581359,139.73,139.7,0.72147695]
[1767910205100,0.69046526,139.79,139.73,0.26999991]
[1767910205286,0.69046526,139.79,139.74,3.27900725]
[1767910206085,7.84456455,139.78,139.74,3.27900725]
[1767910206704,0.69046526,139.77,139.73,0.26999991]
[1767910206991,0.69046526,139.77,139.74,3.27900725]
[1767910208513,0.69046526,139.77,139.75,3.27900725]
[1767910214613,0.69046526,139.77,139.75,2.09870453]
[1767910217618,0.69046526,139.77,139.73,7.42634907]
[1767910217818,0.69046526,139.77,139.75,2.09870453]
[1767910236114,0.69046526,139.77,139.69,0.46999991]
[1767910236437,0.69046526,139.77,139.69,0.2]
[1767910236438,0.69970174,139.7,139.69,0.2]
[1767910238139,0.69970174,139.71,139.69,0.2]
[1767910238719,0.69970174,139.72,139.69,9.72723176]
[1767910239016,0.69970174,139.72,139.69,0.46999991]
[1767910242127,2.79840627,139.72,139.69,0.46999991]
[1767910242331,0.69970174,139.71,139.69,0.2]
[1767910245734,0.69970174,139.71,139.69,22.74681969]
[1767910250256,15.1,139.87,139.69,22.74681969]
[1767910250257,0.69970174,139.76,139.71,0.26999991]
[1767910250457,0.69970174,139.77,139.73,0.26999991]
[1767910251656,7.85442821,139.77,139.73,0.26999991]
[1767910251959,0.69970174,139.76,139.73,0.26999991]
[1767910252169,0.69970174,139.76,139.71,0.26999991]
[1767910252464,0.69970174,139.75,139.71,2.36870444]
[1767910252654,0.69970174,139.75,139.71,9.52635904]
[1767910253356,0.69970174,139.75,139.71,7.42765451]
[1767910254362,0.69970174,139.75,139.71,9.52635904]
[1767910255051,0.66970175,139.75,139.71,9.52635904]
[1767910257066,0.63970176,139.75,139.71,9.52635904]
[1767910257362,0.63970176,139.75,139.71,7.42765451]
[1767910258259,2.73840629,139.75,139.71,7.42765451]
[1767910259054,0.69970174,139.74,139.71,7.1576546]
[1767910259241,2.79840627,139.74,139.71,7.1576546]
[1767910260160,2.79840627,139.74,139.71,22.54681969]
[1767910260360,2.79840627,139.73,139.71,22.54681969]
[1767910260863,0.69970174,139.73,139.71,22.54681969]
[1767910264166,0.66970175,139.73,139.71,22.54681969]
[1767910264667,2.09870453,139.75,139.71,7.15764357]
[1767910264846,22.31404772,139.76,139.71,9.2563481]
[1767910265051,22.31404772,139.76,139.71,9.95602587]
[1767910265444,2.09870453,139.75,139.7,24.62020199]
[1767910266071,7.86074286,139.74,139.7,24.62020199]
[1767910266969,7.86074286,139.74,139.7,22.52149746]
[1767910268453,0.70431458,139.73,139.7,22.52149746]
[1767910268770,0.70431458,139.73,139.7,0.69967777]
[1767910268971,0.70431458,139.74,139.71,0.69967777]
[1767910269177,0.70431458,139.74,139.71,2.7983823]
[1767910269550,0.70431458,139.76,139.73,0.69967777]
[1767910270951,7.85951292,139.76,139.73,0.69967777]
[1767910271267,7.85951292,139.76,139.73,2.7983823]
[1767910274073,0.65984079,139.78,139.74,2.09870453]
[1767910274863,0.65984079,139.77,139.73,28.97840195]
[1767910275057,0.65984079,139.77,139.74,2.09870453]
[1767910275277,0.65984079,139.77,139.74,9.25481785]
[1767910276473,0.65984079,139.77,139.74,3.27906476]
[1767910278087,0.65984079,139.76,139.73,10.43572403]
[1767910279684,7.15425178,139.78,139.74,0.70865147]
[1767910279984,7.81409257,139.78,139.74,0.70865147]
[1767910280191,0.65984079,139.77,139.69,0.2]
[1767910280366,0.65984079,139.72,139.69,0.90865147]
[1767910280566,0.65984079,139.72,139.7,0.70865147]
[1767910282058,3.93890555,139.72,139.7,0.70865147]
[1767910282479,11.09632747,139.72,139.7,0.70865147]
[1767910282683,7.15742192,139.72,139.69,0.90865147]
[1767910282885,7.15742192,139.72,139.7,0.70865147]
[1767910284086,10.43648668,139.72,139.69,0.90865147]
[1767910285785,8.24282576,139.7,139.61,35.35289852]
[1767910285997,0.28432314,139.7,139.62,0.70865147]
[1767910286171,3.27906476,139.67,139.63,0.70865147]
[1767910287882,10.43884885,139.67,139.63,0.70865147]
[1767910288084,7.15978409,139.67,139.63,0.70865147]
[1767910290771,10.43884885,139.67,139.63,0.70865147]
[1767910292192,11.09594595,139.67,139.63,0.70865147]
[1767910292372,0.38818794,139.66,139.62,0.67659348]
[1767910293401,0.38818794,139.66,139.62,11.11782563]
[1767910294072,0.68716736,139.71,139.66,0.67659348]
[1767910294272,0.35841839,139.7,139.67,0.67659348]
[1767910297476,3.63748315,139.7,139.67,0.67659348]
[1767910299598,3.27906476,139.7,139.67,0.67659348]
[1767910299799,10.43754675,139.7,139.67,0.67659348]
[1767910300002,3.27906476,139.69,139.67,0.67659348]
[1767910301998,3.27906476,139.68,139.65,0.67659348]
[1767910302301,7.51690038,139.7,139.65,0.67659348]
[1767910302302,3.27906476,139.69,139.66,0.67659348]
[1767910302475,3.27906476,139.69,139.67,13.06]
[1767910303384,3.27906476,139.69,139.67,13.73659348]
[1767910303801,7.51690038,139.7,139.67,13.73659348]
[1767910303802,10.79596514,139.7,139.67,13.73659348]
[1767910304588,3.27906476,139.71,139.68,0.67659348]
[1767910304789,3.63748315,139.71,139.68,0.67659348]
[1767910305181,7.15826855,139.7,139.68,0.67659348]
[1767910306391,3.63748315,139.71,139.68,0.67659348]
[1767910306392,10.79534345,139.71,139.68,0.67659348]
[1767910308883,3.27906476,139.73,139.69,0.67659348]
[1767910309194,3.96623212,139.73,139.68,7.15914209]